[Event "Late-Titled-Tuesday-Blitz-October-17-2023"]
[Site "Chess.com"]
[Date "2023.10.17"]
[Round "1"]
[White "victormago"]
[Black "maciek_92"]
[Result "0-1"]
[WhiteElo "2458"]
[BlackElo "2844"]
[TimeControl "180+1"]
[EndTime "14:07:26 PDT"]
[Termination "maciek_92 won on time"]

1. d4 {[%clk 0:03:00]} 1... Nf6 {[%clk 0:03:00]} 2. c4 {[%clk 0:02:59.8]} 2...
d6 {[%clk 0:03:00.6]} 3. Nf3 {[%clk 0:02:58.4]} 3... Nbd7 {[%clk 0:03:00.9]} 4.
g3 {[%clk 0:02:54.7]} 4... e5 {[%clk 0:02:59.6]} 5. Bg2 {[%clk 0:02:54.7]} 5...
g6 {[%clk 0:02:57.6]} 6. O-O {[%clk 0:02:54.2]} 6... Bg7 {[%clk 0:02:58.3]} 7.
Nc3 {[%clk 0:02:54.2]} 7... O-O {[%clk 0:02:58.8]} 8. dxe5 {[%clk 0:02:47.3]}
8... dxe5 {[%clk 0:02:57.6]} 9. Qc2 {[%clk 0:02:41]} 9... c6 {[%clk 0:02:54.7]}
10. Rd1 {[%clk 0:02:39.6]} 10... Qc7 {[%clk 0:02:54.1]} 11. h3 {[%clk
0:02:39.2]} 11... Re8 {[%clk 0:02:53.2]} 12. Be3 {[%clk 0:02:38.4]} 12... Bf8
{[%clk 0:02:50.4]} 13. Rac1 {[%clk 0:02:32.7]} 13... Nc5 {[%clk 0:02:42.8]} 14.
b4 {[%clk 0:02:18.3]} 14... Bf5 {[%clk 0:02:41.9]} 15. Qb2 {[%clk 0:02:15.1]}
15... Nce4 {[%clk 0:02:30]} 16. Nxe4 {[%clk 0:02:13.9]} 16... Bxe4 {[%clk
0:02:29.6]} 17. a3 {[%clk 0:01:59.6]} 17... a6 {[%clk 0:02:24.6]} 18. Rd2 {[%clk
0:01:46.3]} 18... c5 {[%clk 0:02:00.4]} 19. Bg5 {[%clk 0:01:33.5]} 19... Nh5
{[%clk 0:01:46.2]} 20. Be3 {[%clk 0:01:11.9]} 20... Ng7 {[%clk 0:01:32.9]} 21.
g4 {[%clk 0:01:05.2]} 21... Rac8 {[%clk 0:01:12.5]} 22. b5 {[%clk 0:00:45.4]}
22... axb5 {[%clk 0:01:10]} 23. Qxb5 {[%clk 0:00:41.8]} 23... Bc6 {[%clk
0:01:03.6]} 24. Qb2 {[%clk 0:00:41.2]} 24... e4 {[%clk 0:00:58.2]} 25. Nh2
{[%clk 0:00:29.5]} 25... Ne6 {[%clk 0:00:58.6]} 26. Nf1 {[%clk 0:00:26.7]} 26...
Bg7 {[%clk 0:00:58.9]} 27. Qb1 {[%clk 0:00:22.3]} 27... Nd4 {[%clk 0:00:57.3]}
28. Ng3 {[%clk 0:00:19.5]} 28... Qe7 {[%clk 0:00:23.2]} 29. Rcd1 {[%clk
0:00:14.7]} 29... Ra8 {[%clk 0:00:21.5]} 30. Bxd4 {[%clk 0:00:09]} 30... cxd4
{[%clk 0:00:22.4]} 31. Rxd4 {[%clk 0:00:08.7]} 31... Bxd4 {[%clk 0:00:22.7]} 32.
Rxd4 {[%clk 0:00:09.3]} 32... e3 {[%clk 0:00:22.9]} 33. Bxc6 {[%clk 0:00:08.1]}
33... bxc6 {[%clk 0:00:23.8]} 34. Re4 {[%clk 0:00:06.7]} 34... exf2+ {[%clk
0:00:23.4]} 35. Kxf2 {[%clk 0:00:07.1]} 35... Qc5+ {[%clk 0:00:16.3]} 36. Kg2
{[%clk 0:00:06.8]} 36... Qxa3 {[%clk 0:00:15.8]} 37. Rxe8+ {[%clk 0:00:04.5]}
37... Rxe8 {[%clk 0:00:16.7]} 38. Ne4 {[%clk 0:00:04.8]} 38... Qe7 {[%clk
0:00:16.6]} 39. Kf3 {[%clk 0:00:04.1]} 39... f5 {[%clk 0:00:16.6]} 40. gxf5
{[%clk 0:00:04.3]} 40... gxf5 {[%clk 0:00:17.5]} 41. Ng3 {[%clk 0:00:04.5]}
41... Qe3+ {[%clk 0:00:13.2]} 42. Kg2 {[%clk 0:00:04.8]} 42... f4 {[%clk
0:00:13.8]} 0-1

[Event "Late-Titled-Tuesday-Blitz-October-17-2023"]
[Site "Chess.com"]
[Date "2023.10.17"]
[Round "1"]
[White "gahryman"]
[Black "schachlana"]
[Result "1-0"]
[WhiteElo "2657"]
[BlackElo "2338"]
[TimeControl "180+1"]
[EndTime "14:07:28 PDT"]
[Termination "gahryman won by resignation"]

1. e4 {[%clk 0:03:00.9]} 1... c5 {[%clk 0:02:59.7]} 2. Nc3 {[%clk 0:02:58.1]}
2... e6 {[%clk 0:02:59.4]} 3. g3 {[%clk 0:02:53.1]} 3... d5 {[%clk 0:02:58.2]}
4. Bg2 {[%clk 0:02:47.5]} 4... d4 {[%clk 0:02:53.9]} 5. Nce2 {[%clk 0:02:47.4]}
5... e5 {[%clk 0:02:51.4]} 6. d3 {[%clk 0:02:46.6]} 6... g6 {[%clk 0:02:49.5]}
7. f4 {[%clk 0:02:46.3]} 7... Bg7 {[%clk 0:02:49.8]} 8. Nf3 {[%clk 0:02:46.5]}
8... Nc6 {[%clk 0:02:49.4]} 9. O-O {[%clk 0:02:41.4]} 9... Nge7 {[%clk
0:02:49.2]} 10. fxe5 {[%clk 0:02:24.7]} 10... Nxe5 {[%clk 0:02:47.3]} 11. Nxe5
{[%clk 0:02:24.5]} 11... Bxe5 {[%clk 0:02:48.2]} 12. Bh6 {[%clk 0:02:23.5]}
12... Bg4 {[%clk 0:02:38.7]} 13. Qd2 {[%clk 0:02:23.2]} 13... Ng8 {[%clk
0:02:34]} 14. Bf4 {[%clk 0:02:18.5]} 14... Bg7 {[%clk 0:02:27.2]} 15. e5 {[%clk
0:02:10.8]} 15... Ne7 {[%clk 0:02:20]} 16. h3 {[%clk 0:02:05.4]} 16... Bxe2
{[%clk 0:02:18.1]} 17. Qxe2 {[%clk 0:02:06.3]} 17... O-O {[%clk 0:02:18.6]} 18.
e6 {[%clk 0:02:01.1]} 18... Nd5 {[%clk 0:02:10.1]} 19. exf7+ {[%clk 0:01:53.3]}
19... Rxf7 {[%clk 0:02:07.7]} 20. Qe6 {[%clk 0:01:52.8]} 20... Nf6 {[%clk
0:01:55]} 21. Bxb7 {[%clk 0:01:37.1]} 21... Qe8 {[%clk 0:01:39.6]} 22. Qc4
{[%clk 0:01:01.3]} 22... Rd8 {[%clk 0:01:03.4]} 23. Rae1 {[%clk 0:00:52.8]}
23... Qd7 {[%clk 0:01:00.2]} 24. Bg2 {[%clk 0:00:53.3]} 24... Kh8 {[%clk
0:00:53.1]} 25. Bg5 {[%clk 0:00:51.8]} 25... Rff8 {[%clk 0:00:46.2]} 26. Qxc5
{[%clk 0:00:47]} 26... Rc8 {[%clk 0:00:40.1]} 27. Qe7 {[%clk 0:00:47.2]} 27...
Qxe7 {[%clk 0:00:33.1]} 28. Rxe7 {[%clk 0:00:48.1]} 28... Rxc2 {[%clk
0:00:33.4]} 29. Rxa7 {[%clk 0:00:45.1]} 29... Rxb2 {[%clk 0:00:33.5]} 30. a4
{[%clk 0:00:45.1]} 30... h6 {[%clk 0:00:26.2]} 31. Bxf6 {[%clk 0:00:35]} 31...
Rxf6 {[%clk 0:00:27.1]} 32. Rxf6 {[%clk 0:00:31.6]} 32... Bxf6 {[%clk 0:00:28]}
33. Be4 {[%clk 0:00:32.1]} 33... Bg5 {[%clk 0:00:25]} 34. a5 {[%clk 0:00:21.5]}
34... Be3+ {[%clk 0:00:24.8]} 35. Kh1 {[%clk 0:00:20.7]} 35... Rb1+ {[%clk
0:00:22.3]} 36. Kg2 {[%clk 0:00:20.7]} 36... Rb2+ {[%clk 0:00:22.7]} 37. Kf1
{[%clk 0:00:17.7]} 37... Rb1+ {[%clk 0:00:20.1]} 38. Ke2 {[%clk 0:00:17.9]}
38... Rb2+ {[%clk 0:00:20.4]} 39. Kd1 {[%clk 0:00:17.7]} 39... Rd2+ {[%clk
0:00:11.3]} 40. Ke1 {[%clk 0:00:17.8]} 40... Rh2 {[%clk 0:00:11]} 41. a6 {[%clk
0:00:17.3]} 41... Rxh3 {[%clk 0:00:10]} 42. Ra8+ {[%clk 0:00:15.8]} 42... Kg7
{[%clk 0:00:10.3]} 43. a7 {[%clk 0:00:16.4]} 1-0

[Event "Late-Titled-Tuesday-Blitz-October-17-2023"]
[Site "Chess.com"]
[Date "2023.10.17"]
[Round "1"]
[White "aNaartjieZA"]
[Black "midedu"]
[Result "1-0"]
[WhiteElo "2523"]
[BlackElo "2022"]
[TimeControl "180+1"]
[EndTime "14:07:28 PDT"]
[Termination "aNaartjieZA won by resignation"]

1. e4 {[%clk 0:03:00.9]} 1... c5 {[%clk 0:02:59.5]} 2. Nf3 {[%clk 0:03:01.1]}
2... Nc6 {[%clk 0:02:59.4]} 3. g3 {[%clk 0:03:01.3]} 3... g6 {[%clk 0:02:59.2]}
4. Bg2 {[%clk 0:03:01.5]} 4... Bg7 {[%clk 0:02:59.8]} 5. O-O {[%clk 0:03:02.1]}
5... e6 {[%clk 0:03:00.4]} 6. d3 {[%clk 0:03:01.5]} 6... Nge7 {[%clk 0:03:00.5]}
7. Nbd2 {[%clk 0:03:01.7]} 7... O-O {[%clk 0:03:00.1]} 8. Re1 {[%clk 0:03:01.8]}
8... d5 {[%clk 0:02:56.9]} 9. h4 {[%clk 0:03:00.8]} 9... h6 {[%clk 0:02:56.4]}
10. c3 {[%clk 0:02:55.6]} 10... b5 {[%clk 0:02:54.6]} 11. e5 {[%clk 0:02:54.4]}
11... a5 {[%clk 0:02:46.5]} 12. Nf1 {[%clk 0:02:48.4]} 12... b4 {[%clk
0:02:45.2]} 13. Bf4 {[%clk 0:02:45.5]} 13... a4 {[%clk 0:02:44.1]} 14. a3 {[%clk
0:02:41.6]} 14... bxc3 {[%clk 0:02:42.1]} 15. bxc3 {[%clk 0:02:39.8]} 15... Qa5
{[%clk 0:02:39]} 16. Qd2 {[%clk 0:02:37.7]} 16... Kh7 {[%clk 0:02:37.8]} 17.
N1h2 {[%clk 0:02:32.1]} 17... Rb8 {[%clk 0:02:34.9]} 18. Ng4 {[%clk 0:02:30.9]}
18... Ng8 {[%clk 0:02:34.3]} 19. h5 {[%clk 0:02:01.5]} 19... Rb3 {[%clk
0:02:29.3]} 20. Rec1 {[%clk 0:01:55.3]} 20... Bd7 {[%clk 0:02:28]} 21. Bf1
{[%clk 0:01:49.2]} 21... Rfb8 {[%clk 0:02:14.1]} 22. hxg6+ {[%clk 0:01:47.2]}
22... fxg6 {[%clk 0:02:13.4]} 23. Nf6+ {[%clk 0:01:47.3]} 23... Nxf6 {[%clk
0:02:07]} 24. exf6 {[%clk 0:01:47.4]} 24... Bf8 {[%clk 0:02:04.4]} 25. Bxb8
{[%clk 0:01:47.1]} 25... Rxb8 {[%clk 0:02:01.7]} 26. Qf4 {[%clk 0:01:43.9]}
26... g5 {[%clk 0:01:54.1]} 27. Qe3 {[%clk 0:01:25.8]} 27... Bd6 {[%clk
0:01:47.4]} 28. Nxg5+ {[%clk 0:01:16.2]} 28... hxg5 {[%clk 0:01:46.4]} 29. Qxg5
{[%clk 0:01:16.5]} 29... Bf8 {[%clk 0:01:41.3]} 30. Qh5+ {[%clk 0:01:15.7]}
30... Kg8 {[%clk 0:01:35.1]} 31. Qg6+ {[%clk 0:01:12.7]} 31... Kh8 {[%clk
0:01:33.8]} 32. Be2 {[%clk 0:00:56.9]} 32... Be8 {[%clk 0:00:51.7]} 33. f7
{[%clk 0:00:30]} 33... Bxf7 {[%clk 0:00:51.2]} 34. Qxf7 {[%clk 0:00:28.6]} 34...
Qa7 {[%clk 0:00:43.6]} 35. Qxe6 {[%clk 0:00:19.9]} 35... Qe7 {[%clk 0:00:29.6]}
36. Qxc6 {[%clk 0:00:18.7]} 36... Qxe2 {[%clk 0:00:28]} 37. Kg2 {[%clk
0:00:18.9]} 37... Qe5 {[%clk 0:00:21.8]} 38. Rh1+ {[%clk 0:00:18.6]} 38... Kg8
{[%clk 0:00:22]} 39. Qg6+ {[%clk 0:00:18.4]} 39... Bg7 {[%clk 0:00:22]} 40. Rae1
{[%clk 0:00:16.7]} 40... Qf6 {[%clk 0:00:19.8]} 41. Re8+ {[%clk 0:00:16.7]}
41... Rxe8 {[%clk 0:00:19.1]} 42. Qxe8+ {[%clk 0:00:16.7]} 42... Qf8 {[%clk
0:00:19.8]} 43. Qxf8+ {[%clk 0:00:16.9]} 43... Kxf8 {[%clk 0:00:19.6]} 44. c4
{[%clk 0:00:17.2]} 44... dxc4 {[%clk 0:00:19.5]} 45. dxc4 {[%clk 0:00:16.9]}
45... Bb2 {[%clk 0:00:19.4]} 46. Rb1 {[%clk 0:00:17.5]} 46... Bxa3 {[%clk
0:00:19.1]} 47. Ra1 {[%clk 0:00:18.2]} 47... Bb4 {[%clk 0:00:19.1]} 48. Rxa4
{[%clk 0:00:18.8]} 48... Ke7 {[%clk 0:00:19.7]} 49. Ra6 {[%clk 0:00:19.4]} 49...
Kd7 {[%clk 0:00:19.5]} 50. f4 {[%clk 0:00:20.1]} 50... Kc7 {[%clk 0:00:19.9]}
51. g4 {[%clk 0:00:20.7]} 1-0

[Event "Late-Titled-Tuesday-Blitz-October-17-2023"]
[Site "Chess.com"]
[Date "2023.10.17"]
[Round "1"]
[White "SchmakAttack"]
[Black "wild3000"]
[Result "1-0"]
[WhiteElo "2741"]
[BlackElo "2413"]
[TimeControl "180+1"]
[EndTime "14:07:32 PDT"]
[Termination "SchmakAttack won by checkmate"]

1. Nf3 {[%clk 0:02:59.3]} 1... b5 {[%clk 0:02:59.1]} 2. e3 {[%clk 0:02:54.8]}
2... a6 {[%clk 0:02:57.3]} 3. b3 {[%clk 0:02:53.4]} 3... Bb7 {[%clk 0:02:55.1]}
4. Bb2 {[%clk 0:02:53.8]} 4... Nf6 {[%clk 0:02:54.1]} 5. Be2 {[%clk 0:02:39.6]}
5... e6 {[%clk 0:02:53.1]} 6. O-O {[%clk 0:02:40.1]} 6... Be7 {[%clk 0:02:52.2]}
7. c4 {[%clk 0:02:36]} 7... bxc4 {[%clk 0:02:48.7]} 8. bxc4 {[%clk 0:02:36.9]}
8... c5 {[%clk 0:02:46.7]} 9. Nc3 {[%clk 0:02:34.2]} 9... O-O {[%clk 0:02:44.6]}
10. d4 {[%clk 0:02:33.1]} 10... cxd4 {[%clk 0:02:26.9]} 11. exd4 {[%clk
0:02:25]} 11... Bxf3 {[%clk 0:02:12.7]} 12. Bxf3 {[%clk 0:02:25.1]} 12... d5
{[%clk 0:02:13.6]} 13. cxd5 {[%clk 0:02:15.1]} 13... exd5 {[%clk 0:02:03.9]} 14.
Qb3 {[%clk 0:02:14.7]} 14... Nc6 {[%clk 0:02:02.6]} 15. Nxd5 {[%clk 0:02:14.3]}
15... Rb8 {[%clk 0:01:53.4]} 16. Nxe7+ {[%clk 0:02:07.1]} 16... Nxe7 {[%clk
0:01:45.8]} 17. Qc2 {[%clk 0:01:55.1]} 17... Qb6 {[%clk 0:01:33.1]} 18. Ba3
{[%clk 0:01:53.9]} 18... Rfc8 {[%clk 0:01:32.3]} 19. Bc5 {[%clk 0:01:53.7]}
19... Qc7 {[%clk 0:01:24.2]} 20. Qe2 {[%clk 0:01:49.3]} 20... Ng6 {[%clk
0:01:22.3]} 21. Qxa6 {[%clk 0:01:47.9]} 21... Nh4 {[%clk 0:01:20.2]} 22. Qd3
{[%clk 0:01:17.1]} 22... Qf4 {[%clk 0:01:19.5]} 23. Rab1 {[%clk 0:01:10.2]}
23... Ng4 {[%clk 0:00:57]} 24. Bxg4 {[%clk 0:01:06.7]} 24... Qxg4 {[%clk
0:00:57.4]} 25. Qg3 {[%clk 0:01:06.7]} 25... Qe4 {[%clk 0:00:55.1]} 26. Rbe1
{[%clk 0:01:01.4]} 26... Qxg2+ {[%clk 0:00:18.1]} 27. Qxg2 {[%clk 0:01:01.5]}
27... Nxg2 {[%clk 0:00:19]} 28. Kxg2 {[%clk 0:01:02.3]} 28... Ra8 {[%clk
0:00:19.4]} 29. a3 {[%clk 0:01:02.1]} 29... h6 {[%clk 0:00:18.6]} 30. Re7 {[%clk
0:01:01.8]} 30... Rc6 {[%clk 0:00:18.3]} 31. Rfe1 {[%clk 0:01:00.3]} 31... Rg6+
{[%clk 0:00:18]} 32. Kf1 {[%clk 0:01:01]} 32... Rf6 {[%clk 0:00:15.8]} 33. Re8+
{[%clk 0:01:01.1]} 33... Rxe8 {[%clk 0:00:15.5]} 34. Rxe8+ {[%clk 0:01:02]}
34... Kh7 {[%clk 0:00:16.2]} 35. d5 {[%clk 0:01:00.6]} 35... Rf5 {[%clk
0:00:16.2]} 36. Rd8 {[%clk 0:01:01.4]} 36... Kg6 {[%clk 0:00:16]} 37. Bb4 {[%clk
0:01:02.1]} 37... Kf6 {[%clk 0:00:16]} 38. d6 {[%clk 0:01:01.2]} 38... Ke6
{[%clk 0:00:15.8]} 39. Re8+ {[%clk 0:00:59.3]} 39... Kd7 {[%clk 0:00:14.7]} 40.
Re7+ {[%clk 0:00:59.8]} 40... Kc8 {[%clk 0:00:12.7]} 41. Ke2 {[%clk 0:00:55.9]}
41... g5 {[%clk 0:00:11.4]} 42. Ke3 {[%clk 0:00:56.2]} 42... f6 {[%clk
0:00:11.4]} 43. f3 {[%clk 0:00:53.6]} 43... h5 {[%clk 0:00:10.9]} 44. Bc3 {[%clk
0:00:49.8]} 44... g4 {[%clk 0:00:09.8]} 45. fxg4 {[%clk 0:00:49.6]} 45... hxg4
{[%clk 0:00:10.7]} 46. Ke4 {[%clk 0:00:47]} 46... Rf2 {[%clk 0:00:09.9]} 47. d7+
{[%clk 0:00:43]} 47... Kd8 {[%clk 0:00:09.7]} 48. Ba5+ {[%clk 0:00:43.7]} 48...
Kxe7 {[%clk 0:00:08.5]} 49. d8=Q+ {[%clk 0:00:44.6]} 49... Kf7 {[%clk
0:00:09.1]} 50. Qd7+ {[%clk 0:00:44.6]} 50... Kg6 {[%clk 0:00:07]} 51. Qxg4+
{[%clk 0:00:44.6]} 51... Kf7 {[%clk 0:00:07.2]} 52. Qh5+ {[%clk 0:00:44.9]}
52... Kg7 {[%clk 0:00:04.6]} 53. Bc3 {[%clk 0:00:42.6]} 53... Kg8 {[%clk
0:00:02.3]} 54. Qg6+ {[%clk 0:00:41.8]} 54... Kf8 {[%clk 0:00:02.6]} 55. Bb4#
{[%clk 0:00:42.4]} 1-0

[Event "Late-Titled-Tuesday-Blitz-October-17-2023"]
[Site "Chess.com"]
[Date "2023.10.17"]
[Round "1"]
[White "elprimo2012mortis"]
[Black "Schwindle"]
[Result "1-0"]
[WhiteElo "2725"]
[BlackElo "2405"]
[TimeControl "180+1"]
[EndTime "14:07:33 PDT"]
[Termination "elprimo2012mortis won by checkmate"]

1. e4 {[%clk 0:03:00.9]} 1... e6 {[%clk 0:02:59]} 2. d4 {[%clk 0:03:00.9]} 2...
d5 {[%clk 0:02:59.3]} 3. Nd2 {[%clk 0:03:01.6]} 3... Nf6 {[%clk 0:02:59.1]} 4.
e5 {[%clk 0:03:01.6]} 4... Nfd7 {[%clk 0:02:59.2]} 5. c3 {[%clk 0:03:02.4]} 5...
c5 {[%clk 0:02:58.9]} 6. Bd3 {[%clk 0:03:03]} 6... Nc6 {[%clk 0:02:59]} 7. Ngf3
{[%clk 0:03:03.3]} 7... Qb6 {[%clk 0:02:56]} 8. O-O {[%clk 0:03:02.5]} 8... Be7
{[%clk 0:02:56.4]} 9. a3 {[%clk 0:03:01.9]} 9... g5 {[%clk 0:02:53.9]} 10. dxc5
{[%clk 0:02:20.9]} 10... Nxc5 {[%clk 0:02:45.8]} 11. Bc2 {[%clk 0:02:21.4]}
11... g4 {[%clk 0:02:40.4]} 12. Nd4 {[%clk 0:02:19.8]} 12... h5 {[%clk
0:02:38.3]} 13. f4 {[%clk 0:02:02.6]} 13... Bd7 {[%clk 0:02:31.7]} 14. b4 {[%clk
0:01:58.6]} 14... Nxd4 {[%clk 0:02:25.6]} 15. cxd4 {[%clk 0:01:58.7]} 15... Nd3
{[%clk 0:02:08.3]} 16. Nb3 {[%clk 0:01:57.9]} 16... Nxc1 {[%clk 0:02:05.3]} 17.
Rxc1 {[%clk 0:01:58.8]} 17... O-O-O {[%clk 0:01:42.3]} 18. f5 {[%clk 0:01:41.3]}
18... Kb8 {[%clk 0:01:39.7]} 19. f6 {[%clk 0:01:37.4]} 19... Bf8 {[%clk
0:01:39.8]} 20. Nc5 {[%clk 0:01:37.1]} 20... Bh6 {[%clk 0:01:34.6]} 21. Rb1
{[%clk 0:01:34.7]} 21... Bb5 {[%clk 0:01:30.7]} 22. Bd3 {[%clk 0:01:29.5]} 22...
h4 {[%clk 0:01:17.1]} 23. a4 {[%clk 0:01:22.1]} 23... Bxd3 {[%clk 0:01:08.6]}
24. Qxd3 {[%clk 0:01:23]} 24... Ka8 {[%clk 0:00:50]} 25. Rb3 {[%clk 0:01:20.3]}
25... h3 {[%clk 0:00:45.8]} 26. g3 {[%clk 0:01:18.2]} 26... Rc8 {[%clk
0:00:31.8]} 27. a5 {[%clk 0:01:14.8]} 27... Qd8 {[%clk 0:00:31.8]} 28. Rfb1
{[%clk 0:01:08.7]} 28... Qg8 {[%clk 0:00:21.7]} 29. Ra1 {[%clk 0:01:05.2]} 29...
Bg5 {[%clk 0:00:20.9]} 30. b5 {[%clk 0:01:02.8]} 30... Qh7 {[%clk 0:00:18.8]}
31. Qe2 {[%clk 0:00:58.4]} 31... Rhg8 {[%clk 0:00:08.4]} 32. b6 {[%clk
0:00:56.1]} 32... a6 {[%clk 0:00:08.5]} 33. Ra2 {[%clk 0:00:25]} 33... Rc6
{[%clk 0:00:08.6]} 34. Rc2 {[%clk 0:00:20.3]} 34... Rgc8 {[%clk 0:00:08.1]} 35.
Rbc3 {[%clk 0:00:21]} 35... Bh6 {[%clk 0:00:07.4]} 36. Qxg4 {[%clk 0:00:19]}
36... Rxc5 {[%clk 0:00:05.8]} 37. dxc5 {[%clk 0:00:14.3]} 37... Bf8 {[%clk
0:00:03.8]} 38. Qd4 {[%clk 0:00:13.9]} 38... Qf5 {[%clk 0:00:03.7]} 39. c6
{[%clk 0:00:13.8]} 39... bxc6 {[%clk 0:00:03.7]} 40. b7+ {[%clk 0:00:14.3]}
40... Kxb7 {[%clk 0:00:03.7]} 41. Qb6+ {[%clk 0:00:14.7]} 41... Ka8 {[%clk
0:00:04.3]} 42. Qxa6+ {[%clk 0:00:15.1]} 42... Kb8 {[%clk 0:00:05.2]} 43. Rb2+
{[%clk 0:00:09.1]} 43... Kc7 {[%clk 0:00:05.6]} 44. Qxc6+ {[%clk 0:00:08.1]}
44... Kd8 {[%clk 0:00:05.4]} 45. Qxc8# {[%clk 0:00:09]} 1-0

[Event "Late-Titled-Tuesday-Blitz-October-17-2023"]
[Site "Chess.com"]
[Date "2023.10.17"]
[Round "1"]
[White "KaydenTroffChess"]
[Black "Soltan49"]
[Result "1-0"]
[WhiteElo "2816"]
[BlackElo "2439"]
[TimeControl "180+1"]
[EndTime "14:07:37 PDT"]
[Termination "KaydenTroffChess won by resignation"]

1. d4 {[%clk 0:03:00.9]} 1... Nf6 {[%clk 0:03:00]} 2. c4 {[%clk 0:03:01]} 2...
g6 {[%clk 0:02:58.8]} 3. Nc3 {[%clk 0:03:00.6]} 3... Bg7 {[%clk 0:02:59.5]} 4.
e4 {[%clk 0:03:00.1]} 4... O-O {[%clk 0:03:00.4]} 5. f4 {[%clk 0:02:58.2]} 5...
c5 {[%clk 0:03:01]} 6. d5 {[%clk 0:02:53.8]} 6... d6 {[%clk 0:03:01.3]} 7. Nf3
{[%clk 0:02:54]} 7... b5 {[%clk 0:03:01.7]} 8. cxb5 {[%clk 0:02:53.3]} 8... a6
{[%clk 0:03:01.6]} 9. Qc2 {[%clk 0:02:50.5]} 9... Nbd7 {[%clk 0:02:59.2]} 10.
Bd2 {[%clk 0:02:43.7]} 10... Nb6 {[%clk 0:02:54.5]} 11. a4 {[%clk 0:02:36.3]}
11... axb5 {[%clk 0:02:53.8]} 12. Bxb5 {[%clk 0:02:37.2]} 12... Ba6 {[%clk
0:02:53.5]} 13. O-O {[%clk 0:02:36.2]} 13... Nc4 {[%clk 0:02:48.7]} 14. Rfe1
{[%clk 0:02:12]} 14... Nxd2 {[%clk 0:02:46.8]} 15. Qxd2 {[%clk 0:02:12.2]} 15...
Bxb5 {[%clk 0:02:41.7]} 16. Nxb5 {[%clk 0:02:12]} 16... Qb6 {[%clk 0:02:41.7]}
17. h3 {[%clk 0:02:00.5]} 17... Rfb8 {[%clk 0:02:26.6]} 18. Kh2 {[%clk
0:01:57.9]} 18... Rxa4 {[%clk 0:02:18.4]} 19. Rxa4 {[%clk 0:01:53.1]} 19... Qxb5
{[%clk 0:02:19.1]} 20. Rea1 {[%clk 0:01:45.9]} 20... h6 {[%clk 0:02:11]} 21. e5
{[%clk 0:01:42.5]} 21... Nd7 {[%clk 0:01:56.9]} 22. e6 {[%clk 0:01:38.3]} 22...
fxe6 {[%clk 0:01:54.4]} 23. dxe6 {[%clk 0:01:39.2]} 23... Nf8 {[%clk 0:01:50.9]}
24. Ra7 {[%clk 0:01:31.8]} 24... Bf6 {[%clk 0:01:41.5]} 25. f5 {[%clk
0:01:11.2]} 25... g5 {[%clk 0:01:41.8]} 26. R1a2 {[%clk 0:01:05.3]} 26... c4
{[%clk 0:01:32.5]} 27. Qe3 {[%clk 0:00:59.9]} 27... Qxf5 {[%clk 0:01:29]} 28.
Ra8 {[%clk 0:00:56.2]} 28... Rxa8 {[%clk 0:01:23.4]} 29. Rxa8 {[%clk 0:00:57.1]}
29... Bxb2 {[%clk 0:01:19.2]} 30. g4 {[%clk 0:00:43.6]} 30... Qc2+ {[%clk
0:01:09.9]} 31. Kg3 {[%clk 0:00:38.6]} 31... Bf6 {[%clk 0:01:10.7]} 32. Rc8
{[%clk 0:00:35.5]} 32... c3 {[%clk 0:01:09.1]} 33. h4 {[%clk 0:00:33.3]} 33...
gxh4+ {[%clk 0:01:04.5]} 34. Kh3 {[%clk 0:00:26.7]} 34... Qg6 {[%clk 0:00:56.7]}
35. Nxh4 {[%clk 0:00:24.4]} 35... Bxh4 {[%clk 0:00:48.3]} 36. Kxh4 {[%clk
0:00:25.3]} 36... c2 {[%clk 0:00:48.2]} 37. Qf4 {[%clk 0:00:20.4]} 37... Qg7
{[%clk 0:00:38.9]} 38. Qf5 {[%clk 0:00:20]} 38... Qg5+ {[%clk 0:00:27.5]} 39.
Qxg5+ {[%clk 0:00:19.7]} 39... hxg5+ {[%clk 0:00:28.4]} 40. Kxg5 {[%clk
0:00:20.1]} 40... Kg7 {[%clk 0:00:29.3]} 41. Kf5 {[%clk 0:00:20.5]} 41... Nh7
{[%clk 0:00:26.2]} 42. Rxc2 {[%clk 0:00:20.6]} 42... Nf6 {[%clk 0:00:26.7]} 43.
Rc7 {[%clk 0:00:19]} 43... Nd5 {[%clk 0:00:27.1]} 44. Rc8 {[%clk 0:00:16.7]}
44... Ne3+ {[%clk 0:00:26.3]} 45. Kf4 {[%clk 0:00:16.6]} 45... Nd5+ {[%clk
0:00:26.6]} 46. Kg5 {[%clk 0:00:17.3]} 46... Nf6 {[%clk 0:00:25.9]} 47. Kf5
{[%clk 0:00:17.1]} 47... Nh7 {[%clk 0:00:22.6]} 48. Re8 {[%clk 0:00:16.6]} 1-0